Cogmind - Beta 14 @@@ ROGUE MODE // 2024.10.07 @ 16:37:57 Player: N.W.L Result: Destroyed by L2-X1E(R) with Subdweller Laser Performance ------------- Evolutions (0) 0 Regions Visited (2) 400 Robots Destroyed (42) 210 Value Destroyed (1130) 1130 Prototype IDs (2) 40 Alien Tech Used (0) 0 Bonus (0) 0 TOTAL SCORE: 1780 Bonus ------- None Cogmind --------- Core Integrity 0/250 Matter 290/300 Energy 185/200 System Corruption 2% Temperature Cool (6) Movement Treading (320) Ox2 Location -10/Subcaves Parts ------- > --- POWER (1) -------- Subdweller Power Source > --- PROPULSION (2) --- Light Treads Light Treads > --- UTILITY (2) ------ Disposable Heat Sink Huge Storage Unit > --- WEAPON (2) ------- Flamer Flamer > --- INVENTORY (25) --- Light Treads Light Treads Subdweller Monowheel Subdweller Monowheel Subdweller Monowheel Subdweller Monowheel Subdweller Monowheel Medium Storage Unit Sensor Array Subdweller Laser Subdweller Beam Cannon Subdweller Beam Cannon Subdweller Beam Cannon Powered Cannon Subdweller Machine Gun Subdweller Machine Gun Subdweller Machine Gun Subdweller Machine Gun Barrage Gun Battle Cannon Hammer Shrapnel Trap Peak State ------------ > --- POWER ------------ Subdweller Power Source > --- PROPULSION ------- Light Treads Light Treads > --- UTILITY ---------- Disposable Heat Sink Huge Storage Unit > --- WEAPON ----------- Flamer Flamer > --- INVENTORY -------- Light Treads Light Treads Subdweller Monowheel Subdweller Monowheel Subdweller Monowheel Subdweller Monowheel Subdweller Monowheel Medium Storage Unit Sensor Array Subdweller Laser Subdweller Beam Cannon Subdweller Beam Cannon Subdweller Beam Cannon Powered Cannon Subdweller Machine Gun Subdweller Machine Gun Subdweller Machine Gun Barrage Gun Battle Cannon Flamer Hammer Shrapnel Trap [Rating: 16] Favorites ----------- Power Ion Engine Engine Ion Engine Propulsion Light Treads Treads Light Treads Leg Aluminum Leg Utility Huge Storage Unit Device Sensor Array Storage Huge Storage Unit Protection Propulsion Shielding Weapon Subdweller Beam Cannon Energy Gun Medium Laser Energy Cannon Subdweller Beam Cannon Ballistic Gun Subdweller Machine Gun Ballistic Cannon Light Cannon Special Weapon Flamer Impact Weapon Hammer Build | -11 -10 -10 ------- Run | Yrd Mat Sub Slots Evolved . | . . . Power . | . . . Propulsion . | . . . Utility . | . . . Weapon . | . . . Parts Attached 45 | . 14 31 Power 4 | . 1 3 Engine 4 | . 1 3 Core . | . . . Reactor . | . . . Propulsion 4 | . 2 2 Treads 4 | . 2 2 Leg . | . . . Wheel . | . . . Hover . | . . . Flight . | . . . Utility 6 | . 2 4 Device 2 | . . 2 Storage 2 | . 1 1 Processor . | . . . Hackware . | . . . Protection 2 | . 1 1 Artifact . | . . . Weapon 31 | . 9 22 Energy Gun 1 | . 1 . Energy Cannon 14 | . 3 11 Ballistic Gun 2 | . 1 1 Ballistic Cannon 3 | . 3 . Launcher . | . . . Special Weapon 5 | . . 5 Impact Weapon 6 | . 1 5 Slashing Weapon . | . . . Piercing Weapon . | . . . Special Melee Weapon . | . . . Unidentified Prototypes . | . . . Parts Lost 9 | . 2 7 Power 3 | . 1 2 Propulsion 2 | . . 2 Utility 1 | . . 1 Weapon 3 | . 1 2 Highest Loss Streak 2 | . 2 2 To Critical Strikes . | . . . Average Slot Usage (%) 97 | . 90 99 Engine 13 | . 10 13 Treads 26 | . 19 27 Leg 1 | . 8 . Device 8 | . . 10 Storage 14 | . 14 14 Protection 4 | . 8 3 Energy Gun 2 | . 10 . Energy Cannon 17 | . 5 20 Ballistic Gun 4 | . 7 3 Impact Weapon 1 | . . 2 Peak Build Rating 16 | 6 8 16 Average Rating 11 | 6 6 12 On Entrance 6 | 6 6 7 Naked Turns . | . . . Heaviest Build 104 | 14 24 104 Greatest Support 40 | 20 40 40 Greatest Overweight (x) 4 | . 1 4 Average Overweight (x) 1 | . . 1 Largest Inventory Capacity 25 | 8 10 25 Average Capacity 20 | 8 9 24 Most Carried 25 | 6 10 25 Average Carried 18 | 6 8 20 Final Capacity 25 | 8 10 25 Final Carried 23 | 6 10 23 Class Distribution -------------------- 91% | Mutant 8% | Scavenger-Mutant Dominant Class ---------------- Mutant | -10/Materials Mutant | -10/Subcaves Resources | -11 -10 -10 ----------- Run | Yrd Mat Sub Matter Collected 901 | 200 293 408 Remotely . | . . . Salvage Created 1642 | . 845 797 Parts 98 | . 44 54 Haulers Intercepted 2 | . 2 . Recyclers Shooed 3 | . 3 . Parts Field Recycled . | . . . Retrieved Matter . | . . . Parts Self-Destructed 12 | . . 12 Prevented . | . . . Kills | -11 -10 -10 ------- Run | Yrd Mat Sub Combat Hostiles Destroyed 34 | . 15 19 Guns 10 | . 8 2 Cannons 22 | . 7 15 Classes Destroyed 8 | . 6 2 Builder 1 | . 1 . Hauler 2 | . 2 . Recycler 3 | . 3 . Operator 2 | . 2 . Swarmer 9 | . 5 4 Grunt 10 | . 10 . Sentry 1 | . . 1 Subdweller 14 | . . 14 Best Kill Streak 7 | . 7 3 Combat Bots Only 3 | . 3 3 Max Kills in Single Turn 1 | . 1 1 Gunslinging . | . . . Exploded . | . . . Melee . | . . . Uniques/NPCs Destroyed . | . . . Combat | -11 -10 -10 -------- Run | Yrd Mat Sub Hostile Shots Fired 139 | . 70 69 Missed 30 | . 16 14 Damage Taken 1539 | . 615 924 Core 264 | . 111 153 Absorbed by Shields . | . . . Redirected to Shielding 48 | . 25 23 Regen/Repaired (Parts) 464 | . 464 . Core Remaining (%) 100 | 100 . . Volleys Fired 120 | . 67 53 Largest 2 | . 2 2 Hottest 200 | . 120 200 Shots Fired 227 | . 133 94 Gun 107 | . 98 9 Cannon 117 | . 35 82 Launcher . | . . . Special 3 | . . 3 Kinetic 68 | . 57 11 Thermal 159 | . 76 83 Explosive . | . . . Electromagnetic . | . . . Robot Hit Streak 18 | . 8 18 Robot Miss Streak 7 | . 7 6 Penetration Max . | . . . Secondary Targets 2 | . 2 . Max Gunslinging Chain 1 | . 1 . Shots Hit Robots 140 | . 80 60 Core Hits 59 | . 37 22 Critical Kills 1 | . . 1 Critical Parts Destroyed . | . . . Critical Strikes 6 | . 2 4 Burn 4 | . 2 2 Meltdown 1 | . . 1 Blast 1 | . . 1 Melee Attacks 31 | . 7 24 Impact 31 | . 7 24 Slashing . | . . . Piercing . | . . . Sneak Attacks 1 | . 1 . Combat Hostiles . | . . . Follow-up Attacks . | . . . Damage Inflicted 2688 | . 1198 1490 Guns 860 | . 741 119 Cannons 1704 | . 383 1321 Explosions . | . . . Melee 91 | . 74 17 Ramming . | . . . Kinetic 608 | . 457 151 Thermal 1989 | . 667 1322 Explosive . | . . . Electromagnetic . | . . . Impact 91 | . 74 17 Slashing . | . . . Piercing . | . . . Highest Corruption 2 | . 2 2 Average Corruption 2 | . 2 2 Corruption Purged . | . . . Corruption Blocked . | . . . Effects 43 | . 4 39 Message Errors 7 | . 2 5 Matter Fused 11 | . 2 9 Heat Flow Errors 11 | . . 11 Energy Discharges 4 | . . 4 Data Loss (minor) 4 | . . 4 Data Loss (major) 2 | . . 2 Misfires 4 | . . 4 Overload Shots . | . . . Overflow Damage 48 | . 35 13 Projectiles 26 | . 13 13 Explosions . | . . . Melee 22 | . 22 . Knockbacks 2 | . 2 . Impact 1 | . 1 . Kinetic 1 | . 1 . Secondary . | . . . Self-Inflicted Damage . | . . . Shots . | . . . Rammed 1 | . . 1 Targets Rammed 1 | . . 1 Kicked . | . . . Crushed . | . . . Highest Temperature 317 | . 317 249 Average Temperature 62 | . 63 61 Received Heat Transfer 306 | . 195 111 Effects 1 | . 1 . Interference 1 | . 1 . Siege Activations . | . . . Robots Corrupted 1 | . 1 . Combat Hostiles . | . . . Parts Fried 4 | . 4 . Impact Corruptions 2 | . 2 . Robots Melted 2 | . . 2 Combat Hostiles 2 | . . 2 Parts Melted 6 | . 2 4 Heat Transferred 4186 | . 1887 2299 Parts Sabotaged . | . . . Parts Stolen . | . . . Parts Stripped . | . . . Power Chain Reactions . | . . . Alert | -11 -10 -10 ------- Run | Yrd Mat Sub Peak Influence 296 | . 296 . Initial . | . . . Average 160 | . 161 . Maximum Alert Level 1 | . 1 . Low Security (%) 80 | 100 80 . Level 1 19 | . 19 . Level 2 . | . . . Level 3 . | . . . Level 4 . | . . . Level 5 . | . . . High Security . | . . . Max Security . | . . . Squads Dispatched 5 | . 5 . Investigation 2 | . 2 . Extermination . | . . . Reinforcement 3 | . 3 . Assault . | . . . Garrison . | . . . Intercept . | . . . Searches Triggered . | . . . Construction Impeded . | . . . Haulers Reinforced . | . . . Active Scanning Responses . | . . . Cargo Convoy Interrupts . | . . . Stealth | -11 -10 -10 --------- Run | Yrd Mat Sub Distress Signals 1 | . 1 . Communications Jammed . | . . . Distress Signals . | . . . Times Spotted 52 | . 33 19 Peak Tracking Total 4 | . 4 4 Tactical Retreats 3 | . . 3 Traps | -11 -10 -10 ------- Run | Yrd Mat Sub Traps Triggered 3 | . 3 . Indirectly . | . . . Trap Hack Attempts . | . . . Triggered . | . . . Disarmed . | . . . Reprogrammed . | . . . Reused . | . . . Traps Extracted . | . . . Installed . | . . . Triggered . | . . . Most Traps Carried 1 | . . 1 Machines | -11 -10 -10 ---------- Run | Yrd Mat Sub Machines Disabled 1 | . 1 . Max in Single Turn 1 | . 1 . Machines Repaired . | . . . Machines Dismantled . | . . . Machines Sabotaged . | . . . Overloaded Fab Kills . | . . . Hacking | -11 -10 -10 --------- Run | Yrd Mat Sub Machines Accessed 8 | . 7 1 Terminals 5 | . 5 . Fabricators . | . . . Repair Stations 1 | . 1 . Recycling Units 1 | . 1 . Scanalyzers . | . . . Garrison Access . | . . . Total Hacks 32 | . 28 4 Successful 21 | . 17 4 Failed 11 | . 11 . Catastrophic 2 | . 2 . Database Lockouts . | . . . Manual 20 | . 20 . Terminals 21 | . 21 . Fabricators . | . . . Repair Stations 5 | . 5 . Recycling Units 2 | . 2 . Scanalyzers . | . . . Garrison Access . | . . . Terminal Hacks 12 | . 8 4 Record 4 | . . 4 Part Schematic 2 | . 2 . Robot Analysis 2 | . 2 . Prototype ID Bank 1 | . 1 . Terminal Index 1 | . 1 . Patrol Status 1 | . 1 . Recall Investigation 1 | . 1 . Fabricator Hacks . | . . . Repair Station Hacks 4 | . 4 . Scan Component 2 | . 2 . Repair 2 | . 2 . Recycling Unit Hacks 1 | . 1 . Retrieve Components 1 | . 1 . Scanalyzer . | . . . Garrison Access Hacks . | . . . Unauthorized Hacks 4 | . 4 . Terminals 4 | . 4 . Operators 1 | . 1 . Skim 3 | . 3 . Fabricators . | . . . Repair Stations . | . . . Recycling Units . | . . . Scanalyzers . | . . . Garrison Access . | . . . Data Cores Recovered . | . . . Used . | . . . Hacking Detections 5 | . 5 . Full Trace Events 1 | . 1 . Feedback Events . | . . . Feedback Blocked . | . . . Robot Schematics Acquired . | . . . Robots Built . | . . . Authchips . | . . . Time . | . . . Total Robot Build Rating . | . . . Part Schematics Acquired 2 | . 2 . Parts Built . | . . . Authchips . | . . . Time . | . . . Total Part Build Rating . | . . . Parts Repaired 2 | . 2 . Time 52 | . 52 . Parts Recycled . | . . . Recycled Matter . | . . . Retrieved Matter . | . . . Retrieved Components 9 | . 9 . Parts Scanalyzed . | . . . Part Schematics Acquired . | . . . Parts Damaged . | . . . Bothacking | -11 -10 -10 ------------ Run | Yrd Mat Sub Used RIF Installer . | . . . Robots Hacked . | . . . Non-combat . | . . . Combat . | . . . Robot Hacks Applied . | . . . Relay Couplers Released . | . . . Fabnet Peak Effective % . | . . . Robots Rewired . | . . . Allies Hacked . | . . . Hacks Repelled . | . . . Allies | -11 -10 -10 -------- Run | Yrd Mat Sub Total Allies . | . . . Largest Group . | . . . Highest-Rated Group . | . . . Highest-Rated Ally . | . . . Total Orders . | . . . Ally Attacks . | . . . Total Damage . | . . . Kills . | . . . Allies Corrupted . | . . . Allies Melted . | . . . Intel | -11 -10 -10 ------- Run | Yrd Mat Sub Robot Analysis Total 2 | . 2 . Derelict Logs Recovered 1 | . . 1 Drone Launches . | . . . Drone Recoveries . | . . . Exploration | -11 -10 -10 ------------- Run | Yrd Mat Sub Turns Passed 4557 | 3 1022 3532 Spaces Moved 1368 | 3 441 924 Core . | . . . Treads 1204 | . 280 924 Legs 164 | 3 161 . Wheels . | . . . Hover . | . . . Flight . | . . . Fastest Speed 120 | 120 120 160 Average Speed 250 | 120 146 300 Slowest Speed 480 | 120 190 480 Overloaded Moves . | . . . Propulsion Burnouts . | . . . Robots Hopped . | . . . Cave-ins Triggered . | . . . Exploration Rate (%) 45 | 2 71 63 Regions Visited 2 Branch Regions 1 Pre-discovered Areas 2 | . . 2 Known Exits Taken . | . . . Unknown Exits Taken 2 | 1 1 . Scrap Searched 9 | . . 9 Spaces Dug 1 | . . 1 Terrain Destroyed 15 | . . 15 Melee 1 | . . 1 Projectile 14 | . . 14 AOE . | . . . Terrain Rammed . | . . . Walls Destroyed . | . . . Machines Disabled . | . . . Actions | -11 -10 -10 --------- Run | Yrd Mat Sub Total 2210 | 2 675 1533 Wait 582 | . 122 460 Move 1366 | 2 440 924 Hop . | . . . Pick Up 40 | . 13 27 Fast Attach 9 | . 5 4 Attach 13 | . 4 9 Detach 2 | . . 2 Swap 23 | . 5 18 Drop 23 | . 12 11 Fire 120 | . 67 53 Melee 31 | . 7 24 Ram . | . . . Kick . | . . . Crush 1 | . . 1 Escape Stasis . | . . . Rewire . | . . . Trap . | . . . Miscellaneous . | . . . Route ------- -11/Scrapyard -10/Materials (discovered 4 exits: [*Mat x2] / [*Min] / *Sub) -10/Subcaves (discovered 1 exit: [*Mat]) History --------- Turn | Location | Event 1 | -11/Scrapyard | Discovered new exit (range 0) 4 | -11/Scrapyard | Entered Materials 325 | -10/Materials | Build established: Mutant 453 | -10/Materials | Discovered new exit (range 16) 539 | -10/Materials | Discovered new exit (range 9) 781 | -10/Materials | Discovered new exit (range 9) 932 | -10/Materials | Repaired Huge Storage Unit 958 | -10/Materials | Repaired Lgt. Cannon 1025 | -10/Materials | Discovered new exit (range 2) 1026 | -10/Materials | Entered Subcaves 1030 | -10/Subcaves | Ambushed by Subdwellers from Twisted Machinery 1067 | -10/Subcaves | Learned location of Zion (-6) 1113 | -10/Subcaves | Discovered new exit (range 3) 1196 | -10/Subcaves | A Subdweller sparked back to life 1245 | -10/Subcaves | Core integrity fell below 50% 1260 | -10/Subcaves | Found Prototype Energy Cannon 3091 | -10/Subcaves | Visited Clippyterm 3101 | -10/Subcaves | Learned Factory trap positions 3101 | -10/Subcaves | Learned location of Deep Caves (-6) 3137 | -10/Subcaves | A swath of the cavern ceiling suddenly collapsed 3604 | -10/Subcaves | Curiously followed by a Cobbler waking with a query about "LVR3C" 4083 | -10/Subcaves | Disturbed a concealed Subdweller 4125 | -10/Subcaves | Disturbed a concealed Subdweller 4130 | -10/Subcaves | Core integrity fell below 20% 4492 | -10/Subcaves | Build established: Scavenger-Mutant 4558 | -10/Subcaves | Destroyed by L2-X1E(R) with Subdweller Laser Last Messages --------------- 04256_ 75-QLC(u) deconstructs Twisted Machinery. 04263_ Subatomizers dissect the Sub. Laser. 04371_ Sub. Power Source shoots sparks and powers down. 04379_ System corrupted: Substantial component data lost. 04395_ System corrupted: FCS attempts to trigger Sub. Beam Cannon. 04395_ System corrupted: Sub. Beam Cannon misfires. 04419_ Lgt. Armor Plating destroyed. 04420_ Sub. Beam Cannon shoots sparks and powers down. 04421_ Broken Sub. Power Source destroyed. 04425_ PE-UNI(R) shuts down. 04425_ PE-UNI(R) suffers critical hit (Burn). 04426_ PE-UNI(R) critical meltdown. 04441_ Acquired 20 matter. 04447_ Acquired Sub. Power Source. 04449_ Acquired 10 matter. 04456_ Acquired Sub. Machine Gun. 04553_ Flamer destroyed. 04556_ L2-X1E(R) suffers critical hit (Burn). 04557_ L2-X1E(R) overheating. 04558_ L2-X1E(R) heat damages Sub. Laser. Map ----- +----------------------------------------------------+ | ???????????????????????????????????????????? | | ???????????????????????????????????????????? | | ???????????????????????????????????????????? | | ???????????????????????????????????????????? | | ???????????????????????????????????????????? | | ???????????????????????????????????????????? | | ???????????????????????????????????????????? | | ???????????????????????????????????????????? | | ???????????????????????????????????????????? | | ???????????????????????????????????????????? | | ???????????????????????????????????????????? | | ???????????????????????????????????????????? | | ???????????????????????????????????????????? | | ???????????????????????????????????????????? | | ???????????????????????????????????????????? | | ???????????????????????????????????????????? | | ???????????????????????????????????????????? | | ???????????????????????????????????????????? | | ????????? ?????????????????????????????????? | | ????????%" ????????????????????????????????? | | ????????? #???????????????????????????????? | | ????????? !=#???????????######?????????????? | | ????????? &"%#??######?## #?????????????? | | ???????? " ### ### #?????????????? | | ?????????# " "" " " #?????????????? | | ??????????#" "" " "@ ##?????????????? | | ???????????#"" ###"R #??????????????? | | ???????????# ##?# ####??????????????? | | ???????????# %% %#?# #?????????????????? | | ???????????# ##?# ?????????????????? | | ???????????### #??# #????????????????? | | ?????????????## ###### #????????????????? | | ?????????????## ## ## ####??????????????? | | ?????????????# %### ##### ##?????????????? | | ????????????## !# #???# #?????????????? | | ???????????## #%& #???# #?????????????? | | ???????????# #& & #??## #?????????????? | | ?? ? ?????# #### #?????????????? | | ??# ????## ##?????????????? | | ??# ?????# " #??????????????? | | ??# ?????# " #### #?????????????? | | ??# ???## #??## #?????????????? | | ??# ?### #???# #?????????????? | | ??# ## ##???## ##?????????????? | | ??# #### #####?#" #??????????????? | | ### #??## "###" #??????????????? | | ## " ##? ## ""#####??????????????? | | ## ### ""## ## "#??????????????????? | | "# ### """" "#??????????????????? | | !# ## " #####??????????????????? | +----------------------------------------------------+ Best States ------------- Heat Dissipation 25 Coolant Potential 50 Energy Generation 15 Energy Capacity 250 Matter Stores 300 Matter Capacity 300 Sight Range 16 Robot Scan Range 14 Terrain Scan Density 10 Armor Coverage 150 Propulsion Shielding 33 Evasion (%) 55 Recoil Reduction 2 Item Schematics ----------------- Cargo Storage Unit | -10/Materials | Hacked Huge Storage Unit | -10/Materials | Hacked Robot Schematics ------------------ None Fabricated ------------ Nothing Alien Tech Used ----------------- None Achievements -------------- None Challenges ------------ None Game ------ Seed ReactionAntigravProtection Manual? 0 Play Time 00:20:20 Cumulative 323.3 hours Start 2024.10.06 @ 19:05:06 End 2024.10.07 @ 16:37:57 Sessions 3 Manual Loads 0 Difficulty Rogue Special Mode None Game No. 157 Rogue 157 Adventurer 0 Explorer 0 Win Type - Total 9 Types 5/1/3/0/0/0/0/0/0 Lore% 82 Gallery% 87 Achievement% 73 Wizard Run 0 Options --------- Layout 0 ASCII 0 Keyboard 0 Movement Mouse Keybinds 0 Fullscreen 2 Font 12/Smallcaps Map View 83x54 Zoom Use 0% Tactical HUD 1 Map Filters NONE Filters NONE Steam 1 RUN: 8832f58c-7030-4326-abd1-92236261165c